Cogmind - Beta 16 --- EXPLORER MODE // 2026.01.06 @ 13:55:35 Player: K.K.Y. Result: Destroyed by Y-45 Defender with Heavy Assault Rifle Performance ------------- Evolutions (0) 0 Regions Visited (4) 800 Robots Destroyed (63) 315 Value Destroyed (1635) 1635 Prototype IDs (12) 240 Alien Tech Used (0) 0 Bonus (1581) 1581 TOTAL SCORE: 4571 Bonus ------- Delivered SUBCON Basin 2000 Friendly Fire -419 Cogmind --------- Core Integrity 0/250 Matter 290/300 Energy 100/100 System Corruption 0% Temperature Cool (9) Movement Treading (320) Ox2 Location -9/Recycling Parts ------- > --- POWER (1) -------- (None) > --- PROPULSION (2) --- Light Treads Improved Treads > --- UTILITY (3) ------ Huge Storage Unit Makeshift Light Armor Plating Makeshift Light Armor Plating > --- WEAPON (2) ------- Heavy Hammer Makeshift Hammer > --- INVENTORY (25) --- Combat Airjet Improved Heat Sink Light Humpback Humpback Makeshift Kinetic Plating Tech Extrapolator Slug Cannon Mining Laser Plasma Cutter Peak State ------------ > --- POWER ------------ (None) > --- PROPULSION ------- Spiked Treads Spiked Treads > --- UTILITY ---------- Huge Storage Unit Structural Scanner Makeshift Light Armor Plating > --- WEAPON ----------- Makeshift Shrapnel Gun Makeshift Hammer > --- INVENTORY -------- Combat Airjet Improved Heat Sink Medium Storage Unit Light Humpback Makeshift Light Armor Plating Makeshift Kinetic Plating Slug Cannon Mining Laser Plasma Cutter SUBCON Basin [Rating: 38] Favorites ----------- Power Ion Engine Engine Ion Engine Propulsion Spiked Treads Treads Spiked Treads Utility Makeshift Light Armor Plating Device Structural Scanner Storage Huge Storage Unit Protection Makeshift Light Armor Plating Weapon Makeshift Hammer Ballistic Gun Heavy Assault Rifle Impact Weapon Makeshift Hammer Build | -11 -10 -10 -10 -9 ------- Run | Yrd Mat Min Sub Rec Slots Evolved 1 | . 1 . . . Power . | . . . . . Propulsion . | . . . . . Utility 1 | . 1 . . . Weapon . | . . . . . Parts Attached 31 | 6 10 1 10 4 Power 3 | 1 2 . . . Engine 3 | 1 2 . . . Core . | . . . . . Reactor . | . . . . . Propulsion 9 | 2 1 . 3 3 Treads 9 | 2 1 . 3 3 Leg . | . . . . . Wheel . | . . . . . Hover . | . . . . . Flight . | . . . . . Utility 9 | 1 2 1 5 . Device 1 | 1 . . . . Storage 2 | . 1 . 1 . Processor . | . . . . . Hackware . | . . . . . Protection 6 | . 1 1 4 . Artifact . | . . . . . Weapon 10 | 2 5 . 2 1 Energy Gun . | . . . . . Energy Cannon . | . . . . . Ballistic Gun 7 | 2 4 . 1 . Ballistic Cannon . | . . . . . Launcher . | . . . . . Special Weapon . | . . . . . Impact Weapon 3 | . 1 . 1 1 Slashing Weapon . | . . . . . Piercing Weapon . | . . . . . Special Melee Weapon . | . . . . . Unidentified Prototypes . | . . . . . Parts Lost 6 | . . . 5 1 Power 1 | . . . 1 . Propulsion 4 | . . . 3 1 Utility . | . . . . . Weapon 1 | . . . 1 . Highest Loss Streak 2 | . . . 2 1 To Critical Strikes 1 | . . . 1 . Average Backups 8 | 2 6 10 8 8 Power . | . . . . . Propulsion 1 | . 1 2 1 1 Utility 4 | 1 2 3 4 4 Weapon 2 | . 2 4 2 2 Tool/Special . | . . . . . Unused Backups 12 | . . . 3 9 Power . | . . . . . Propulsion 1 | . . . . 1 Utility 6 | . . . 1 5 Weapon 4 | . . . 2 2 Tool/Special 1 | . . . . 1 Average Slot Usage (%) 79 | . 94 100 75 74 Engine 3 | . 12 12 1 . Treads 19 | . 23 25 18 22 Device 9 | . 12 12 10 . Storage 11 | . 8 12 12 12 Protection 14 | . 11 12 13 25 Ballistic Gun 7 | . 19 12 5 . Impact Weapon 11 | . 4 12 12 13 Peak Build Rating 38 | 6 11 14 38 37 Average Rating 25 | 4 9 13 29 31 On Entrance 13 | . 6 11 14 35 Avg Prop Armor Cover (%) . | . . . . . Naked Turns . | . . . . . Heaviest Build 94 | 6 25 25 91 94 Greatest Support 43 | 40 40 40 40 43 Greatest Overweight (x) 4 | 1 1 . 4 4 Average Overweight (x) 1 | . . . 1 2 Largest Inventory Capacity 25 | 5 10 10 25 25 Average Capacity 18 | 5 8 10 20 25 Most Carried 25 | 5 10 10 25 25 Average Carried 18 | 2 6 9 20 21 Final Capacity 25 | 5 10 10 25 25 Final Carried 25 | 3 10 10 25 11 Class Distribution -------------------- 91% | Hacker-Mutant 8% | Derelict-Mutant Dominant Class ---------------- Hacker-Mutant | -10/Materials Hacker-Mutant | -10/Mines Hacker-Mutant | -10/Subcaves Hacker-Mutant | -9/Recycling Resources | -11 -10 -10 -10 -9 ----------- Run | Yrd Mat Min Sub Rec Matter Collected 1171 | 282 565 79 215 30 Remotely . | . . . . . Salvage Created 2199 | 110 697 116 1123 153 Parts 92 | 9 34 6 39 4 Haulers Intercepted 2 | . 2 . . . Recyclers Shooed 2 | . 2 . . . Parts Field Recycled . | . . . . . Retrieved Matter . | . . . . . Parts Self-Destructed . | . . . . . Prevented . | . . . . . Parts Restored . | . . . . . Kills | -11 -10 -10 -10 -9 ------- Run | Yrd Mat Min Sub Rec Combat Hostiles Destroyed 51 | . 13 9 26 3 Melee 11 | . . . 10 1 Guns 25 | . 13 9 3 . Classes Destroyed 15 | 2 7 1 5 . Worker 2 | . 2 . . . Builder 2 | . 2 . . . Tunneler 2 | 2 . . . . Hauler 2 | . 2 . . . Recycler 2 | 1 1 . . . Turret 2 | . . . 2 . Watcher 3 | . 3 . . . Swarmer 12 | . 4 4 4 . Grunt 9 | . 7 . 2 . Sentry 4 | . . . 1 3 Artisan 4 | . . . 4 . Cobbler 1 | . . . 1 . Subdweller 21 | . 2 . 19 . Zionite 2 | . . . 2 . Assembled 5 | . . 5 . . Best Kill Streak 6 | 3 3 3 6 1 Combat Bots Only 4 | . 2 3 4 1 Max Kills in Single Turn 2 | 1 2 1 1 1 Gunslinging 1 | . 1 . . . Exploded . | . . . . . Melee 1 | . . . 1 1 Uniques/NPCs Destroyed . | . . . . . Combat | -11 -10 -10 -10 -9 -------- Run | Yrd Mat Min Sub Rec Hostile Shots Fired 341 | . 81 24 222 14 Missed 103 | . 24 8 66 5 Hits 238 | . 57 16 156 9 Melee 1 | . . 1 . . Projectile 237 | . 57 15 156 9 Critical Strikes 5 | . . . 4 1 Damage Taken 2036 | . 431 110 1414 81 Core 257 | . 32 . 207 18 Absorbed by Shields . | . . . . . Ignored by Resistances 1235 | . 270 74 843 48 Core Remaining (%) 100 | 100 . . . . Volleys Fired 137 | 11 83 23 20 . Largest 2 | 2 2 1 1 . Hottest 46 | 40 46 23 24 . Shots Fired 210 | 22 145 23 20 . Gun 210 | 22 145 23 20 . Cannon . | . . . . . Launcher . | . . . . . Special . | . . . . . Kinetic 210 | 22 145 23 20 . Thermal . | . . . . . Explosive . | . . . . . Electromagnetic . | . . . . . Robot Hit Streak 34 | 8 34 21 8 . Robot Miss Streak 2 | 1 2 2 2 . Penetration Max . | . . . . . Secondary Targets 5 | . 5 . . . Max Gunslinging Chain 1 | . 1 . . . Shots Hit Robots 261 | 17 126 21 90 7 Core Hits 71 | 6 31 13 20 1 Critical Kills 3 | . 1 . 1 1 Critical Parts Destroyed 22 | 1 3 . 16 2 Critical Strikes 29 | 1 4 . 21 3 Destroy 4 | 1 3 . . . Smash 25 | . 1 . 21 3 Melee Attacks 261 | . 3 . 247 11 Impact 261 | . 3 . 247 11 Slashing . | . . . . . Piercing . | . . . . . Sneak Attacks 16 | . 1 . 12 3 Combat Hostiles 2 | . . . 2 . Follow-up Attacks . | . . . . . Damage Inflicted 6622 | 138 1710 327 4102 345 Guns 2393 | 138 1649 327 279 . Cannons . | . . . . . Explosions . | . . . . . Melee 4229 | . 61 . 3823 345 Ramming . | . . . . . Kinetic 2393 | 138 1649 327 279 . Thermal . | . . . . . Explosive . | . . . . . Electromagnetic . | . . . . . Impact 4229 | . 61 . 3823 345 Slashing . | . . . . . Piercing . | . . . . . Highest Corruption . | . . . . . Average Corruption . | . . . . . Corruption Purged . | . . . . . Corruption Blocked . | . . . . . Overload Shots . | . . . . . Overflow Damage 1445 | . 61 . 1302 82 Projectiles . | . . . . . Explosions . | . . . . . Melee 1445 | . 61 . 1302 82 Knockbacks 19 | . . . 19 . Impact 19 | . . . 19 . Kinetic . | . . . . . Secondary . | . . . . . Self-Inflicted Damage . | . . . . . Shots . | . . . . . Rammed . | . . . . . Targets Rammed . | . . . . . Kicked . | . . . . . Crushed . | . . . . . Highest Temperature 35 | . 35 . . 12 Average Temperature 13 | . 13 . . 12 Received Heat Transfer 1044 | . 324 . 648 72 Siege Activations . | . . . . . Martial Activations . | . . . . . Shielding Activations . | . . . . . Robots Disrupted . | . . . . . Combat Hostiles . | . . . . . Robots Corrupted 18 | . 1 . 15 2 Combat Hostiles 15 | . . . 13 2 Parts Fried 20 | . . . 18 2 Impact Corruptions 43 | . 3 . 37 3 Robots Melted . | . . . . . Combat Hostiles . | . . . . . Parts Melted 1 | . 1 . . . Heat Transferred . | . . . . . Parts Sabotaged . | . . . . . Parts Stolen . | . . . . . Parts Stripped . | . . . . . Power Chain Reactions . | . . . . . Alert | -11 -10 -10 -10 -9 ------- Run | Yrd Mat Min Sub Rec Maximum Alert Level . | . . . . . Low Security (%) 100 | 100 100 100 . 100 Level 1 . | . . . . . Level 2 . | . . . . . Level 3 . | . . . . . Level 4 . | . . . . . Level 5 . | . . . . . High Security . | . . . . . Max Security . | . . . . . Peak Influence 57 | 10 57 35 . 20 Initial . | . . . . . Average 3 | . 7 2 . . Influence Increases 845 | 15 327 100 340 63 Destroy 0b10 Robot/C 540 | . 220 80 180 60 Destroy 0b10 Robot/NC 65 | 15 50 . . . Destroy Leader 80 | . 50 20 10 . Successful Hack 3 | . 3 . . . Destroy Structure 7 | . 4 . . 3 Lose Combat Pursuer 150 | . . . 150 . Influence Decreases 845 | 15 327 100 340 63 Time Decay 845 | 15 327 100 340 63 Squads Dispatched . | . . . . . Investigation . | . . . . . Extermination . | . . . . . Reinforcement . | . . . . . Assault . | . . . . . Garrison . | . . . . . Intercept . | . . . . . Searches Triggered . | . . . . . Construction Impeded . | . . . . . Haulers Reinforced . | . . . . . Active Scanning Responses . | . . . . . Cargo Convoy Interrupts . | . . . . . Stealth | -11 -10 -10 -10 -9 --------- Run | Yrd Mat Min Sub Rec Distress Signals 2 | . 2 . . . Communications Jammed . | . . . . . Distress Signals . | . . . . . Times Spotted 64 | . 16 8 36 4 Peak Tracking Total 6 | . 3 2 6 1 Tactical Retreats 10 | . . . 10 . Traps | -11 -10 -10 -10 -9 ------- Run | Yrd Mat Min Sub Rec Traps Triggered 3 | . 1 . 2 . Indirectly . | . . . . . Trap Hack Attempts . | . . . . . Triggered . | . . . . . Disarmed . | . . . . . Reprogrammed . | . . . . . Reused . | . . . . . Traps Extracted . | . . . . . Installed . | . . . . . Triggered . | . . . . . Machines | -11 -10 -10 -10 -9 ---------- Run | Yrd Mat Min Sub Rec Machines Disabled 1 | . . . 1 . Max in Single Turn 1 | . . . 1 . Machines Repaired . | . . . . . Machines Dismantled . | . . . . . Machines Sabotaged . | . . . . . Overloaded Fab Kills . | . . . . . Hacking | -11 -10 -10 -10 -9 --------- Run | Yrd Mat Min Sub Rec Machines Accessed 9 | . 1 . 4 4 Terminals 2 | . 1 . . 1 Fabricators . | . . . . . Repair Stations . | . . . . . Recycling Units 3 | . . . . 3 Scanalyzers . | . . . . . Garrison Access . | . . . . . Total Hacks 15 | . 1 . 7 7 Successful 10 | . 1 . 7 2 Failed 5 | . . . . 5 Catastrophic 1 | . . . . 1 Database Lockouts . | . . . . . Manual 1 | . 1 . . . Terminals 2 | . 1 . . 1 Fabricators . | . . . . . Repair Stations . | . . . . . Recycling Units 6 | . . . . 6 Scanalyzers . | . . . . . Garrison Access . | . . . . . Terminal Hacks 7 | . . . 7 . Record 4 | . . . 4 . Open Door 1 | . . . 1 . Proto ID Catalog 1 | . . . 1 . Release Object 1 | . . . 1 . Fabricator Hacks . | . . . . . Repair Station Hacks . | . . . . . Recycling Unit Hacks 2 | . . . . 2 Retrieve Components 2 | . . . . 2 Scanalyzer . | . . . . . Garrison Access Hacks . | . . . . . Unauthorized Hacks 1 | . 1 . . . Terminals 1 | . 1 . . . Botnet 1 | . 1 . . . Fabricators . | . . . . . Repair Stations . | . . . . . Recycling Units . | . . . . . Scanalyzers . | . . . . . Garrison Access . | . . . . . Data Cores Recovered . | . . . . . Used . | . . . . . Hacking Detections 3 | . 1 . . 2 Full Trace Events 2 | . . . . 2 Feedback Events . | . . . . . Feedback Blocked . | . . . . . Robot Schematics Acquired . | . . . . . Robots Built . | . . . . . Authchips . | . . . . . Time . | . . . . . Total Robot Build Rating . | . . . . . Part Schematics Acquired . | . . . . . Parts Built . | . . . . . Authchips . | . . . . . Time . | . . . . . Total Part Build Rating . | . . . . . Part Studies Acquired . | . . . . . Parts Repaired . | . . . . . Time . | . . . . . Parts Recycled . | . . . . . Recycled Matter . | . . . . . Retrieved Matter . | . . . . . Retrieved Components 4 | . . . . 4 Parts Scanalyzed . | . . . . . Part Schematics Acquired . | . . . . . Parts Damaged . | . . . . . Bothacking | -11 -10 -10 -10 -9 ------------ Run | Yrd Mat Min Sub Rec Used RIF Installer . | . . . . . Robots Hacked . | . . . . . Non-combat . | . . . . . Combat . | . . . . . Robot Hacks Applied . | . . . . . Relay Couplers Released . | . . . . . Fabnet Peak Effective % . | . . . . . Robots Rewired . | . . . . . Allies Hacked . | . . . . . Hacks Repelled . | . . . . . Allies | -11 -10 -10 -10 -9 -------- Run | Yrd Mat Min Sub Rec Total Allies . | . . . . . Largest Group . | . . . . . Highest-Rated Group . | . . . . . Highest-Rated Ally . | . . . . . Total Orders . | . . . . . Ally Attacks . | . . . . . Total Damage . | . . . . . Kills . | . . . . . Allies Corrupted . | . . . . . Allies Melted . | . . . . . Intel | -11 -10 -10 -10 -9 ------- Run | Yrd Mat Min Sub Rec Active Infowar (turns) 10177 | 107 1485 961 7624 . Structural 10177 | 107 1485 961 7624 . Robot Analysis Total . | . . . . . Derelict Logs Recovered 1 | . . . 1 . Drone Launches . | . . . . . Drone Recoveries . | . . . . . Exploration | -11 -10 -10 -10 -9 ------------- Run | Yrd Mat Min Sub Rec Turns Passed 13072 | 124 1485 961 8963 1539 Spaces Moved 3892 | 68 697 502 2190 435 Core 27 | 27 . . . . Treads 3865 | 41 697 502 2190 435 Legs . | . . . . . Wheels . | . . . . . Hover . | . . . . . Flight . | . . . . . Fastest Speed 50 | 50 160 160 160 320 Average Speed 287 | 121 167 160 349 344 Slowest Speed 560 | 160 240 160 560 560 Overloaded Moves . | . . . . . Propulsion Burnouts . | . . . . . Robots Hopped . | . . . . . Potential Cave-ins 2 | . . 2 . . Cave-ins Triggered . | . . . . . Exploration Rate (%) 75 | 5 95 100 97 81 Regions Visited 4 Branch Regions 3 Pre-discovered Areas 2 | . . . 2 . Known Exits Taken 4 | 1 1 1 1 . Unknown Exits Taken . | . . . . . Scrap Searched 5 | . . . 5 . Spaces Dug 74 | . 2 . 70 2 Terrain Destroyed 74 | . 2 . 70 2 Melee 74 | . 2 . 70 2 Projectile . | . . . . . AOE . | . . . . . Terrain Rammed . | . . . . . Walls Destroyed . | . . . . . Machines Disabled . | . . . . . Actions | -11 -10 -10 -10 -9 --------- Run | Yrd Mat Min Sub Rec Total 5294 | 91 865 638 3236 464 Wait 915 | . 47 110 747 11 Move 3888 | 67 696 501 2189 435 Hop . | . . . . . Pick Up 31 | 7 15 1 6 2 Fast Attach 8 | 2 2 . 2 2 Attach 10 | 4 4 . 1 1 Detach 3 | . 2 . 1 . Swap 20 | . 7 1 11 1 Drop 22 | . 6 2 12 2 Fire 137 | 11 83 23 20 . Melee 260 | . 3 . 247 10 Ram . | . . . . . Kick . | . . . . . Crush . | . . . . . Escape Stasis . | . . . . . Rewire . | . . . . . Trap . | . . . . . Miscellaneous . | . . . . . Route ------- -11/Scrapyard -10/Materials (discovered 5 exits: *Mat x3 / *Min / Sub) -10/Mines (discovered 3 exits: *Mat x2 / *Sub) -10/Subcaves (discovered 3 exits: *Mat x2 / *Rec) -9/Recycling (discovered 1 exit: *Fac) History --------- Turn | Location | Event 12 | -11/Scrapyard | Identified exit to Materials 12 | -11/Scrapyard | Discovered exit to Materials (range 16) 125 | -11/Scrapyard | Entered Materials 125 | -10/Materials | Evolved 1 slot: Utility x1 207 | -10/Materials | Identified exit to Subcaves 207 | -10/Materials | Discovered exit to Subcaves (range 10) 316 | -10/Materials | Build established: Hacker-Mutant 599 | -10/Materials | Identified exit to Materials 599 | -10/Materials | Discovered exit to Materials (range 14) 625 | -10/Materials | Derelicts attacked the area 822 | -10/Materials | Discovered exit to Materials (range 10) 1098 | -10/Materials | Identified exit to Mines 1098 | -10/Materials | Discovered exit to Mines (range 15) 1355 | -10/Materials | Discovered exit to Materials (range 16) 1610 | -10/Materials | Entered Mines 1611 | -10/Mines | Assembled infested the area 1673 | -10/Mines | Discovered exit to Materials (range 4) 2014 | -10/Mines | Discovered exit to Materials (range 9) 2560 | -10/Mines | Discovered exit to Subcaves (range 8) 2571 | -10/Mines | Entered Subcaves 2572 | -10/Subcaves | Approached by a straggling Scientist 2768 | -10/Subcaves | Identified exit to Recycling 2768 | -10/Subcaves | Discovered exit to Recycling (range 17) 2812 | -10/Subcaves | Visited Clippyterm 2816 | -10/Subcaves | Learned location of Extension (-6) 2828 | -10/Subcaves | Identified exit to Materials 2828 | -10/Subcaves | Discovered exit to Materials (range 15) 3035 | -10/Subcaves | Ambushed by angry Subdweller bent on revenge 3076 | -10/Subcaves | A swath of the cavern ceiling suddenly collapsed 3282 | -10/Subcaves | Disturbed a concealed Subdweller 3330 | -10/Subcaves | Learned Materials stockpile data 3547 | -10/Subcaves | Visited 4L-MR0's lab 3621 | -10/Subcaves | Shifting Twisted Machinery released Mak. Kinetic Plating 3632 | -10/Subcaves | Shifting Twisted Machinery released Slug Cannon 3643 | -10/Subcaves | Learned location of Zion (-7) 3643 | -10/Subcaves | Met a Zionite searching for "candidates" 4125 | -10/Subcaves | Discovered exit to Materials (range 12) 4218 | -10/Subcaves | Shifting Twisted Machinery released Sub. Machine Gun 4221 | -10/Subcaves | Shifting Twisted Machinery released Sub. Monowheel 5227 | -10/Subcaves | Found SUBCON Basin 5294 | -10/Subcaves | A swath of the cavern ceiling suddenly collapsed 5746 | -10/Subcaves | Shifting Twisted Machinery released Mak. Light Armor Plating 5831 | -10/Subcaves | Shifting Twisted Machinery released Spk. Treads 5994 | -10/Subcaves | Core integrity fell below 50% 6186 | -10/Subcaves | Build established: Derelict-Mutant 7234 | -10/Subcaves | Build established: Hacker-Mutant 9014 | -10/Subcaves | Core integrity fell below 20% 11534 | -10/Subcaves | Entered Recycling 11919 | -9/Recycling | Identified exit to Factory 11919 | -9/Recycling | Discovered exit to Factory (range 11) 12616 | -9/Recycling | Scanned before Scraplab entrance 12664 | -9/Recycling | Entered Scraplab 13073 | -9/Recycling | Destroyed by Y-45 Defender with Heavy Assault Rifle Last Messages --------------- 12713_ 8I-90Q(c) is busy at their terminal. 12744_ The wall retracts into the floor. 12751_ The floor rises up to form a wall. 12837_ Connecting with Recycling Unit... >>Retrieve(Components) Retrieving 3 components... Terrain Scan Processor Hvy. EM Pulse Gun Terrain Scan Processor 12908_ Connecting with Recycling Unit... >>Retrieve(Components) Retrieving 1 components... Hvy. Hammer 12908_ Acquired Hvy. Hammer. 12983_ Connecting with Recycling Unit... 13069_ Sneak attack on Y-45 Defender. 13070_ Y-45 Defender springs to life. 13072_ Destroyed Heat Sink. 13072_ Y-45 Defender system corrupted by crushing effect. Map ----- +----------------------------------------------------+ | ??????????????????????????????## #???# | | ???????????????????????????????# #???#"& "& X | | ???????????????????????????????# #???#""""""" | | ????????????????????????????################# | | ????????????????????????????# #???????? | | ????????????????????????????# #???????? | | ????????????????????????????# #???????? | | ????????????????????????????# #???????? | | ????????????????????????????####+####???????? | | ???????????????????????????????# #??????????? | | ???????????????????????????????# #?????###### | | ???????????????????????????????# #?????# | | ??????????????????????????######+###???# | | ??????????????????????????# #???# | | ??????????????????????????# T """ #???# | | ??????????????????????????# """ ##### | | ??????????????????????????# """ + + | | ??????????????????????????# ### # | | ??????????????????????????# """ #?# # | | ??????????????????????????# """ #?# # | | ??????????????????????????# """ #?# # | | ??????????????????????????# #?# # | | ??????????????????????????######+###?# # #### | | ?????????????????????##???#"""## #???# ###??? | | ????##???############Y#####"Y"## ##### ###### | | ???# + @ !!u | | ???# #;################# | | ???#! %! ??#"#####???????????# " | | ???#% ??# #???????????# "" | | ???# # ############# "" | | ???# + "" | | ???# ! % # ####+########### "" | | ???#! ??# #?# #??# "" | | ???# ????## ##?# #??# " | | ???# ! ???????# #??# """ #??# "" | | ????[ ?????????# #??# """ #??# " | | ????! ???????????# #??# """ " " #### | | ?????????????????# #??# "Y" / | | ?????????????????# #??# """ ####### | | ?????????????????# #??# #?????# | | ?????????????????# #??###########?????# | | ?????????????????# #??????????????????# | | ?????????????????# #??????????????????# | | ?????????????????# #??????????????????# | | ????????????????? #???????????????#### | | ?????????????????? ????????????????# | | ?????????????????????????????????????# | | ?????????????????? ?????????????????# | | ?????????????????? #???????????????### #!! | | ?????????????????# #?????????????????# #!!! | +----------------------------------------------------+ Best States ------------- Heat Dissipation 25 Energy Generation 10 Energy Capacity 250 Matter Stores 300 Matter Capacity 300 Sight Range 16 Terrain Scan Density 10 Armor Coverage 200 Resistance: KI 35 Resistance: TH 35 Resistance: EX 35 Resistance: EM 35 Resistance: I 35 Resistance: S 35 Resistance: P 35 Evasion (%) 50 Recoil Reduction 2 Offensive Hacking 20 Item Schematics ----------------- None Robot Schematics ------------------ None Fabricated ------------ Nothing Repaired ---------- Nothing Studied --------- None Alien Tech Used ----------------- None Achievements -------------- None Challenges ------------ None Game ------ Seed CombatSchematicTurretformer Manual? 0 Play Time 00:30:21 Cumulative 253.4 hours Start 2026.01.06 @ 13:25:25 End 2026.01.06 @ 13:55:35 Sessions 1 Manual Loads 0 Difficulty Explorer Special Mode None Game No. 399 Rogue 0 Adventurer 0 Explorer 399 Win Type - Total 0 Types 0/0/0/0/0/0/0/0/0/0 Lore% 72 Gallery% 69 Achievement% 54 Wizard Run 0 Options --------- Layout 1 ASCII 0 Keyboard 0 Movement Mouse Keybinds 0 Fullscreen 1 Font 24/Smallcaps Map View 50x35 Zoom Use 0% Tactical HUD 1 Map Filters NONE Filters NONE Steam 1 RUN: 875d1130-529d-4272-9d9a-11d94e24780f